[Event "Betsys MČR v online bleskovém šachu 2021"]
[Site "Chess.com"]
[Date "2021.04.17"]
[Round "1"]
[White "Maldaj"]
[Black "patrikvagner"]
[Result "1-0"]
[WhiteElo "2399"]
[BlackElo "1758"]
[TimeControl "180+1"]
[EndTime "9:06:44 PDT"]
[Termination "Uživatel Maldaj zvítězil po vzdání soupeře"]

1. e4 {[%clk 0:03:00.2]} 1... c6 {[%clk 0:02:59.7]} 2. d4 {[%clk 0:02:59.9]}
2... d5 {[%clk 0:02:59.7]} 3. e5 {[%clk 0:03:00.3]} 3... Bf5 {[%clk 0:02:51.4]}
4. Nf3 {[%clk 0:03:00.1]} 4... e6 {[%clk 0:02:51.3]} 5. Be2 {[%clk 0:03:00.3]}
5... c5 {[%clk 0:02:51.1]} 6. Be3 {[%clk 0:02:58.7]} 6... cxd4 {[%clk
0:02:50.7]} 7. Nxd4 {[%clk 0:02:58.6]} 7... Ne7 {[%clk 0:02:46.7]} 8. O-O {[%clk
0:02:57.3]} 8... Nbc6 {[%clk 0:02:45.8]} 9. c4 {[%clk 0:02:52.2]} 9... Nxd4
{[%clk 0:02:45.1]} 10. Bxd4 {[%clk 0:02:51.5]} 10... Nc6 {[%clk 0:02:44.9]} 11.
cxd5 {[%clk 0:02:51.5]} 11... Qxd5 {[%clk 0:02:43.6]} 12. Bf3 {[%clk 0:02:49.6]}
12... Qd7 {[%clk 0:02:30.7]} 13. Bc3 {[%clk 0:02:42]} 13... Bc5 {[%clk
0:02:28.3]} 14. Qxd7+ {[%clk 0:02:38.6]} 14... Kxd7 {[%clk 0:02:27.2]} 15. Nd2
{[%clk 0:02:35.2]} 15... Kc7 {[%clk 0:02:24.3]} 16. Rac1 {[%clk 0:02:34.1]}
16... Bb6 {[%clk 0:02:20.2]} 17. Bb4 {[%clk 0:02:30.3]} 17... Rhd8 {[%clk
0:02:17]} 18. Bd6+ {[%clk 0:02:26]} 18... Kc8 {[%clk 0:02:15.6]} 19. Bxc6 {[%clk
0:02:24.2]} 19... bxc6 {[%clk 0:02:15]} 20. Rxc6+ {[%clk 0:02:25.1]} 20... Kb7
{[%clk 0:02:14.8]} 21. Rfc1 {[%clk 0:02:20.4]} 21... Rac8 {[%clk 0:02:14.2]} 22.
Rxc8 {[%clk 0:02:19.5]} 22... Rxc8 {[%clk 0:02:14.3]} 23. Rxc8 {[%clk
0:02:19.9]} 23... Kxc8 {[%clk 0:02:13.9]} 24. a3 {[%clk 0:02:06.4]} 24... g6
{[%clk 0:02:13.7]} 25. b4 {[%clk 0:02:05.1]} 25... Kd7 {[%clk 0:02:10.9]} 26.
Nb3 {[%clk 0:02:04.5]} 26... Bc2 {[%clk 0:02:07.1]} 27. Nd2 {[%clk 0:02:04.2]}
27... Bd4 {[%clk 0:02:02.7]} 28. Kf1 {[%clk 0:01:56.5]} 28... Bb2 {[%clk
0:02:02.2]} 29. b5 {[%clk 0:01:56.2]} 29... Bd3+ {[%clk 0:01:56.3]} 30. Ke1
{[%clk 0:01:56.3]} 30... Bxb5 {[%clk 0:01:56.1]} 31. Ne4 {[%clk 0:01:56.2]}
31... h5 {[%clk 0:01:48.9]} 32. Nc5+ {[%clk 0:01:53.7]} 32... Kc6 {[%clk
0:01:46.3]} 33. Ne4 {[%clk 0:01:51.4]} 33... Kd5 {[%clk 0:01:41.4]} 34. Ng5
{[%clk 0:01:48.8]} 34... Bxe5 {[%clk 0:01:39.3]} 35. Bxe5 {[%clk 0:01:47.6]}
35... Kxe5 {[%clk 0:01:38.9]} 36. Nxf7+ {[%clk 0:01:47.7]} 36... Kf6 {[%clk
0:01:39]} 37. Nd8 {[%clk 0:01:47.7]} 37... a6 {[%clk 0:01:35.4]} 38. Kd2 {[%clk
0:01:46.5]} 38... Ke5 {[%clk 0:01:34]} 39. Ke3 {[%clk 0:01:45.8]} 39... Bd7
{[%clk 0:01:30.5]} 40. Nb7 {[%clk 0:01:41.9]} 40... Bb5 {[%clk 0:01:28.5]} 41.
Nc5 {[%clk 0:01:37]} 41... Kf5 {[%clk 0:01:25.4]} 42. Ne4 {[%clk 0:01:34.7]}
42... g5 {[%clk 0:01:21.2]} 43. Nd6+ {[%clk 0:01:33.7]} 43... Ke5 {[%clk
0:01:19.9]} 44. Ne4 {[%clk 0:01:29.3]} 44... Bc6 {[%clk 0:01:16.2]} 45. Nxg5
{[%clk 0:01:28.6]} 45... Kf5 {[%clk 0:01:16.4]} 46. Nf3 {[%clk 0:01:25]} 46...
e5 {[%clk 0:01:13.7]} 47. h3 {[%clk 0:01:22.9]} 47... Bb7 {[%clk 0:01:10.7]} 48.
g4+ {[%clk 0:01:21.5]} 48... hxg4 {[%clk 0:01:07.2]} 49. hxg4+ {[%clk
0:01:22.4]} 49... Kxg4 {[%clk 0:01:07]} 50. Nxe5+ {[%clk 0:01:22.3]} 50... Kf5
{[%clk 0:01:06]} 51. Nd3 {[%clk 0:01:22.3]} 51... Bc6 {[%clk 0:01:04.5]} 52. Kd4
{[%clk 0:01:20]} 52... Kg4 {[%clk 0:01:01.2]} 53. Ne5+ {[%clk 0:01:19.5]} 53...
Kf4 {[%clk 0:00:58.9]} 54. Nxc6 {[%clk 0:01:19.1]} 1-0

[Event "Betsys MČR v online bleskovém šachu 2021"]
[Site "Chess.com"]
[Date "2021.04.17"]
[Round "1"]
[White "Dale00007"]
[Black "Johanna94"]
[Result "0-1"]
[WhiteElo "1378"]
[BlackElo "2080"]
[TimeControl "180+1"]
[EndTime "9:06:44 PDT"]
[Termination "Uživatel Johanna94 zvítězil po vzdání soupeře"]

1. e4 {[%clk 0:02:58.8]} 1... c6 {[%clk 0:02:59.8]} 2. d4 {[%clk 0:02:57]} 2...
d5 {[%clk 0:02:59.2]} 3. e5 {[%clk 0:02:53.6]} 3... Bf5 {[%clk 0:02:58.5]} 4.
Bd3 {[%clk 0:02:50]} 4... Bg6 {[%clk 0:02:48.5]} 5. Nf3 {[%clk 0:02:45.9]} 5...
e6 {[%clk 0:02:47.4]} 6. O-O {[%clk 0:02:29.1]} 6... Nd7 {[%clk 0:02:39.5]} 7.
c4 {[%clk 0:02:21.1]} 7... dxc4 {[%clk 0:02:25.6]} 8. Bxc4 {[%clk 0:02:15.7]}
8... Nb6 {[%clk 0:02:18.1]} 9. Bb3 {[%clk 0:01:55.1]} 9... Ne7 {[%clk 0:02:15]}
10. Nc3 {[%clk 0:01:53.4]} 10... Ned5 {[%clk 0:02:12.5]} 11. Bc2 {[%clk
0:01:48.3]} 11... Be7 {[%clk 0:02:07.4]} 12. Re1 {[%clk 0:01:41.1]} 12... O-O
{[%clk 0:02:06.8]} 13. a3 {[%clk 0:01:32.4]} 13... Rc8 {[%clk 0:01:54]} 14. b4
{[%clk 0:01:27.8]} 14... Nxc3 {[%clk 0:01:51.9]} 15. Qd2 {[%clk 0:01:11.4]}
15... Ncd5 {[%clk 0:01:48.5]} 16. Bxg6 {[%clk 0:01:10.6]} 16... hxg6 {[%clk
0:01:47.4]} 17. Re4 {[%clk 0:00:46.6]} 17... a5 {[%clk 0:01:31.8]} 18. h4 {[%clk
0:00:45.5]} 18... axb4 {[%clk 0:01:29.8]} 19. axb4 {[%clk 0:00:44.6]} 19... Bxb4
{[%clk 0:01:25.9]} 20. Qc2 {[%clk 0:00:31.7]} 20... c5 {[%clk 0:01:12.3]} 21.
dxc5 {[%clk 0:00:30.7]} 21... Rxc5 {[%clk 0:01:08.4]} 22. Qe2 {[%clk 0:00:29.4]}
22... Nc3 {[%clk 0:01:04.4]} 23. Qf1 {[%clk 0:00:12.9]} 23... Nxe4 {[%clk
0:01:03.9]} 24. Ng5 {[%clk 0:00:11.5]} 24... Nxg5 {[%clk 0:01:03.6]} 0-1

[Event "Betsys MČR v online bleskovém šachu 2021"]
[Site "Chess.com"]
[Date "2021.04.17"]
[Round "1"]
[White "xPsylocke"]
[Black "czechfant94"]
[Result "1-0"]
[WhiteElo "2224"]
[BlackElo "1604"]
[TimeControl "180+1"]
[EndTime "9:06:50 PDT"]
[Termination "Uživatel xPsylocke zvítězil matem"]

1. e4 {[%clk 0:02:59.9]} 1... e5 {[%clk 0:02:59.7]} 2. Nf3 {[%clk 0:02:59.2]}
2... Nc6 {[%clk 0:02:59.9]} 3. Bc4 {[%clk 0:02:58.6]} 3... Bc5 {[%clk
0:02:59.8]} 4. d3 {[%clk 0:02:55.1]} 4... Nf6 {[%clk 0:02:58.5]} 5. c3 {[%clk
0:02:55.1]} 5... d6 {[%clk 0:02:57.9]} 6. Bb3 {[%clk 0:02:54.4]} 6... h6 {[%clk
0:02:55.7]} 7. Nbd2 {[%clk 0:02:53.8]} 7... O-O {[%clk 0:02:55.3]} 8. Qe2 {[%clk
0:02:51.6]} 8... Bg4 {[%clk 0:02:53.7]} 9. h3 {[%clk 0:02:51.3]} 9... Bh5 {[%clk
0:02:53.5]} 10. g4 {[%clk 0:02:50.5]} 10... Bg6 {[%clk 0:02:52.5]} 11. Nf1
{[%clk 0:02:45.9]} 11... a6 {[%clk 0:02:41.1]} 12. Ng3 {[%clk 0:02:42.8]} 12...
Re8 {[%clk 0:02:34.8]} 13. g5 {[%clk 0:02:36.3]} 13... hxg5 {[%clk 0:02:31.6]}
14. Bxg5 {[%clk 0:02:34]} 14... d5 {[%clk 0:02:26.8]} 15. Nh4 {[%clk 0:02:29.7]}
15... Be7 {[%clk 0:01:59.3]} 16. Nxg6 {[%clk 0:02:00.9]} 16... fxg6 {[%clk
0:01:58.6]} 17. h4 {[%clk 0:02:01.4]} 17... Na5 {[%clk 0:01:56.5]} 18. Bc2
{[%clk 0:01:56.8]} 18... dxe4 {[%clk 0:01:55.9]} 19. dxe4 {[%clk 0:01:55.9]}
19... Nh7 {[%clk 0:01:53.5]} 20. Bxe7 {[%clk 0:01:52.8]} 20... Qxe7 {[%clk
0:01:49.2]} 21. h5 {[%clk 0:01:49.3]} 21... Qg5 {[%clk 0:01:38.4]} 22. hxg6
{[%clk 0:01:37.9]} 22... Qxg6 {[%clk 0:01:38.8]} 23. O-O-O {[%clk 0:01:38]}
23... Rad8 {[%clk 0:01:35.6]} 24. Nf5 {[%clk 0:01:29.3]} 24... Rxd1+ {[%clk
0:01:26.5]} 25. Qxd1 {[%clk 0:01:29.5]} 25... Nc6 {[%clk 0:01:26.3]} 26. Bb3+
{[%clk 0:01:24.8]} 26... Kh8 {[%clk 0:01:23.2]} 27. Rg1 {[%clk 0:01:20]} 27...
Qf6 {[%clk 0:01:08]} 28. Qh5 {[%clk 0:01:02]} 28... Re7 {[%clk 0:00:59.5]} 29.
Nxe7 {[%clk 0:00:56.2]} 29... Qxe7 {[%clk 0:00:57]} 30. Rh1 {[%clk 0:00:54.1]}
30... g5 {[%clk 0:00:46.9]} 31. Bf7 {[%clk 0:00:44.2]} 31... Kg7 {[%clk
0:00:35.5]} 32. Qg6+ {[%clk 0:00:43.6]} 32... Kf8 {[%clk 0:00:35]} 33. Qg8#
{[%clk 0:00:44.1]} 1-0

[Event "Betsys MČR v online bleskovém šachu 2021"]
[Site "Chess.com"]
[Date "2021.04.17"]
[Round "1"]
[White "g4g5g4g5"]
[Black "alenka777"]
[Result "1-0"]
[WhiteElo "2010"]
[BlackElo "1278"]
[TimeControl "180+1"]
[EndTime "9:06:50 PDT"]
[Termination "Uživatel g4g5g4g5 zvítězil matem"]

1. e4 {[%clk 0:02:58.1]} 1... e5 {[%clk 0:02:59.5]} 2. Nf3 {[%clk 0:02:57]} 2...
Nc6 {[%clk 0:02:59.7]} 3. Bb5 {[%clk 0:02:56.2]} 3... Nf6 {[%clk 0:02:59.9]} 4.
d3 {[%clk 0:02:51.3]} 4... Bc5 {[%clk 0:03:00]} 5. O-O {[%clk 0:02:50.2]} 5...
O-O {[%clk 0:02:59.7]} 6. h3 {[%clk 0:02:49.6]} 6... Ne7 {[%clk 0:02:55.8]} 7.
c3 {[%clk 0:02:46.5]} 7... Ng6 {[%clk 0:02:53.9]} 8. b4 {[%clk 0:02:43.7]} 8...
Bd6 {[%clk 0:02:52.5]} 9. a4 {[%clk 0:02:37.4]} 9... a6 {[%clk 0:02:52]} 10. Bc4
{[%clk 0:02:36.5]} 10... b6 {[%clk 0:02:49.9]} 11. Be3 {[%clk 0:02:34.7]} 11...
Bb7 {[%clk 0:02:48.8]} 12. Nbd2 {[%clk 0:02:31.7]} 12... Nf4 {[%clk 0:02:47.3]}
13. Kh2 {[%clk 0:02:25]} 13... h6 {[%clk 0:02:28.1]} 14. Bxf4 {[%clk 0:02:16.6]}
14... exf4 {[%clk 0:02:26.6]} 15. e5 {[%clk 0:02:16.2]} 15... Ng4+ {[%clk
0:02:01.8]} 16. hxg4 {[%clk 0:02:13.6]} 16... Be7 {[%clk 0:01:54.4]} 17. d4
{[%clk 0:02:12.7]} 17... Bh4 {[%clk 0:01:53.2]} 18. Qe2 {[%clk 0:02:08.2]} 18...
Bxf3 {[%clk 0:01:44.2]} 19. Nxf3 {[%clk 0:02:07]} 19... Kh8 {[%clk 0:01:38.4]}
20. Bd3 {[%clk 0:01:59.7]} 20... Bg5 {[%clk 0:01:30.2]} 21. Qe4 {[%clk
0:01:55.5]} 21... g6 {[%clk 0:01:28.9]} 22. g3 {[%clk 0:01:50.3]} 22... fxg3+
{[%clk 0:01:26.5]} 23. fxg3 {[%clk 0:01:49.9]} 23... d5 {[%clk 0:01:19.1]} 24.
exd6 {[%clk 0:01:46.6]} 24... cxd6 {[%clk 0:01:07.8]} 25. Rae1 {[%clk
0:01:42.6]} 25... Qc7 {[%clk 0:00:57]} 26. Nxg5 {[%clk 0:01:39.7]} 26... hxg5
{[%clk 0:00:55.6]} 27. c4 {[%clk 0:01:27.3]} 27... Kg7 {[%clk 0:00:53]} 28. Qf3
{[%clk 0:01:24.3]} 28... Rh8+ {[%clk 0:00:51.7]} 29. Kg2 {[%clk 0:01:24.3]}
29... Raf8 {[%clk 0:00:43.9]} 30. Qf6+ {[%clk 0:01:23.4]} 30... Kg8 {[%clk
0:00:40.1]} 31. d5 {[%clk 0:01:18.2]} 31... b5 {[%clk 0:00:33.4]} 32. Bxg6
{[%clk 0:01:11.4]} 32... Qxc4 {[%clk 0:00:20.5]} 33. Bxf7+ {[%clk 0:01:05.4]}
33... Kh7 {[%clk 0:00:17]} 34. Rh1# {[%clk 0:01:01.8]} 1-0

[Event "Betsys MČR v online bleskovém šachu 2021"]
[Site "Chess.com"]
[Date "2021.04.17"]
[Round "1"]
[White "veronikam"]
[Black "Krejcak"]
[Result "0-1"]
[WhiteElo "1240"]
[BlackElo "2003"]
[TimeControl "180+1"]
[EndTime "9:06:50 PDT"]
[Termination "Uživatel Krejcak zvítězil na čas"]

1. e4 {[%clk 0:02:56.4]} 1... e5 {[%clk 0:02:59]} 2. f4 {[%clk 0:02:54.6]} 2...
exf4 {[%clk 0:02:58]} 3. Nf3 {[%clk 0:02:54.5]} 3... d6 {[%clk 0:02:57.7]} 4.
Bc4 {[%clk 0:02:53]} 4... g5 {[%clk 0:02:57.1]} 5. h3 {[%clk 0:02:45.8]} 5...
Bg7 {[%clk 0:02:56.8]} 6. Nc3 {[%clk 0:02:42.1]} 6... h6 {[%clk 0:02:55.3]} 7.
d4 {[%clk 0:02:39.6]} 7... c6 {[%clk 0:02:55.2]} 8. b3 {[%clk 0:02:27.1]} 8...
Ne7 {[%clk 0:02:45.2]} 9. Bb2 {[%clk 0:02:26.2]} 9... Ng6 {[%clk 0:02:31.1]} 10.
Qe2 {[%clk 0:02:18.5]} 10... Qe7 {[%clk 0:02:25.5]} 11. O-O-O {[%clk 0:02:16.5]}
11... b5 {[%clk 0:02:24.2]} 12. Bd3 {[%clk 0:02:05.1]} 12... a5 {[%clk
0:02:23.7]} 13. e5 {[%clk 0:01:39.5]} 13... d5 {[%clk 0:02:23]} 14. Bxg6 {[%clk
0:01:35.8]} 14... fxg6 {[%clk 0:02:21.6]} 15. Rhf1 {[%clk 0:01:25]} 15... O-O
{[%clk 0:02:10.8]} 16. Nh2 {[%clk 0:01:06.5]} 16... a4 {[%clk 0:02:02.1]} 17.
bxa4 {[%clk 0:00:54.7]} 17... bxa4 {[%clk 0:02:00.6]} 18. Ng4 {[%clk 0:00:51.5]}
18... Ba6 {[%clk 0:01:57.2]} 19. Qf2 {[%clk 0:00:37.4]} 19... Bxf1 {[%clk
0:01:53.3]} 20. Rxf1 {[%clk 0:00:36.9]} 20... Nd7 {[%clk 0:01:51.3]} 21. Re1
{[%clk 0:00:24.7]} 21... Nb6 {[%clk 0:01:50.4]} 22. Nf6+ {[%clk 0:00:18.9]}
22... Bxf6 {[%clk 0:01:44.6]} 23. exf6 {[%clk 0:00:19]} 23... Qxf6 {[%clk
0:01:44.8]} 24. Qe2 {[%clk 0:00:17.4]} 24... Nc4 {[%clk 0:01:43.7]} 25. Qe6+
{[%clk 0:00:16]} 25... Kg7 {[%clk 0:01:33.1]} 26. Qe7+ {[%clk 0:00:11.4]} 26...
Rf7 {[%clk 0:01:33.1]} 27. Qxf6+ {[%clk 0:00:09.2]} 27... Kxf6 {[%clk
0:01:31.1]} 28. Ne2 {[%clk 0:00:06.8]} 28... Nxb2 {[%clk 0:01:29.2]} 29. Kxb2
{[%clk 0:00:06.5]} 29... Rb7+ {[%clk 0:01:28.6]} 30. Kc3 {[%clk 0:00:06.1]}
30... Re8 {[%clk 0:01:22.7]} 31. Kd2 {[%clk 0:00:01.8]} 31... Rbe7 {[%clk
0:01:15.8]} 0-1

[Event "Betsys MČR v online bleskovém šachu 2021"]
[Site "Chess.com"]
[Date "2021.04.17"]
[Round "1"]
[White "jachym08"]
[Black "misa2009"]
[Result "1-0"]
[WhiteElo "2163"]
[BlackElo "1503"]
[TimeControl "180+1"]
[EndTime "9:06:51 PDT"]
[Termination "Uživatel jachym08 zvítězil matem"]

1. d4 {[%clk 0:02:58.5]} 1... Nf6 {[%clk 0:02:59.5]} 2. c4 {[%clk 0:02:54]} 2...
e6 {[%clk 0:02:59]} 3. Nc3 {[%clk 0:02:53.8]} 3... d5 {[%clk 0:02:58.5]} 4. Bg5
{[%clk 0:02:52.1]} 4... Be7 {[%clk 0:02:57.4]} 5. cxd5 {[%clk 0:02:51.9]} 5...
exd5 {[%clk 0:02:56.8]} 6. e3 {[%clk 0:02:52.1]} 6... Nc6 {[%clk 0:02:55.9]} 7.
a3 {[%clk 0:02:47.6]} 7... O-O {[%clk 0:02:55.4]} 8. Bd3 {[%clk 0:02:47.5]} 8...
Be6 {[%clk 0:02:48.7]} 9. Nge2 {[%clk 0:02:46.1]} 9... h6 {[%clk 0:02:46.6]} 10.
Bxf6 {[%clk 0:02:45.9]} 10... Bxf6 {[%clk 0:02:46.1]} 11. Nf4 {[%clk 0:02:44]}
11... a6 {[%clk 0:02:42.2]} 12. Qf3 {[%clk 0:02:39.5]} 12... Re8 {[%clk
0:02:39.2]} 13. O-O {[%clk 0:02:37.8]} 13... Bg5 {[%clk 0:02:31.3]} 14. Nxe6
{[%clk 0:02:26]} 14... fxe6 {[%clk 0:02:27.7]} 15. Qh5 {[%clk 0:02:26]} 15...
Rf8 {[%clk 0:02:21.2]} 16. Qg6 {[%clk 0:02:25.1]} 16... Rf6 {[%clk 0:02:08.1]}
17. Qh7+ {[%clk 0:02:20.2]} 17... Kf7 {[%clk 0:02:07.9]} 18. f4 {[%clk 0:02:20]}
18... Bh4 {[%clk 0:01:54.8]} 19. g3 {[%clk 0:02:19]} 19... Bxg3 {[%clk
0:01:52.7]} 20. hxg3 {[%clk 0:02:12.3]} 20... Qe7 {[%clk 0:01:52.2]} 21. Rae1
{[%clk 0:02:04.1]} 21... Rf8 {[%clk 0:01:51.2]} 22. e4 {[%clk 0:02:00]} 22...
Qe8 {[%clk 0:01:42.8]} 23. exd5 {[%clk 0:01:53.9]} 23... Rh8 {[%clk 0:01:39.9]}
24. dxe6+ {[%clk 0:01:50.4]} 24... Ke7 {[%clk 0:01:35.6]} 25. Nd5+ {[%clk
0:01:47.5]} 25... Kd6 {[%clk 0:01:34]} 26. Nxf6 {[%clk 0:01:45.7]} 26... gxf6
{[%clk 0:01:34.1]} 27. Qe4 {[%clk 0:01:44.8]} 27... Qh5 {[%clk 0:01:31.2]} 28.
d5 {[%clk 0:01:37.1]} 28... Rg8 {[%clk 0:01:26.5]} 29. Kg2 {[%clk 0:01:18.2]}
29... Qg4 {[%clk 0:01:20]} 30. Rf3 {[%clk 0:01:14]} 30... f5 {[%clk 0:01:15.4]}
31. Qe3 {[%clk 0:01:11]} 31... h5 {[%clk 0:01:09]} 32. dxc6 {[%clk 0:01:07.9]}
32... Kxc6 {[%clk 0:01:01.3]} 33. Rc1+ {[%clk 0:01:06.2]} 33... Kd6 {[%clk
0:00:58]} 34. Qe5+ {[%clk 0:01:06.3]} 34... Ke7 {[%clk 0:00:53.3]} 35. Qxc7+
{[%clk 0:01:05.8]} 35... Kf8 {[%clk 0:00:45.7]} 36. e7+ {[%clk 0:01:04]} 36...
Kf7 {[%clk 0:00:41]} 37. Bc4+ {[%clk 0:01:03.9]} 37... Kf6 {[%clk 0:00:39.8]}
38. Qe5+ {[%clk 0:01:02.5]} 38... Kg6 {[%clk 0:00:38.4]} 39. e8=Q+ {[%clk
0:01:02.4]} 39... Rxe8 {[%clk 0:00:38]} 40. Qxe8+ {[%clk 0:01:03.3]} 40... Kf6
{[%clk 0:00:37.9]} 41. Qf7# {[%clk 0:01:02.1]} 1-0

[Event "Betsys MČR v online bleskovém šachu 2021"]
[Site "Chess.com"]
[Date "2021.04.17"]
[Round "1"]
[White "Naty139"]
[Black "Emicka1330"]
[Result "1-0"]
[WhiteElo "2280"]
[BlackElo "1648"]
[TimeControl "180+1"]
[EndTime "9:06:53 PDT"]
[Termination "Uživatel Naty139 zvítězil po vzdání soupeře"]

1. e4 {[%clk 0:03:00.6]} 1... d5 {[%clk 0:02:59.2]} 2. exd5 {[%clk 0:02:59.8]}
2... Nf6 {[%clk 0:02:58.5]} 3. Bb5+ {[%clk 0:02:58.2]} 3... Bd7 {[%clk
0:02:57.9]} 4. Bxd7+ {[%clk 0:02:57.5]} 4... Nbxd7 {[%clk 0:02:54.7]} 5. c4
{[%clk 0:02:57.5]} 5... g6 {[%clk 0:02:49.6]} 6. Nf3 {[%clk 0:02:55.1]} 6... Bg7
{[%clk 0:02:45.7]} 7. O-O {[%clk 0:02:52.8]} 7... O-O {[%clk 0:02:45.3]} 8. d4
{[%clk 0:02:52]} 8... b5 {[%clk 0:02:42.3]} 9. b3 {[%clk 0:02:47]} 9... bxc4
{[%clk 0:02:31.2]} 10. bxc4 {[%clk 0:02:46.1]} 10... Rb8 {[%clk 0:02:31.4]} 11.
Nc3 {[%clk 0:02:43.8]} 11... Nb6 {[%clk 0:02:31.6]} 12. Qd3 {[%clk 0:02:37.2]}
12... Qd7 {[%clk 0:02:22.5]} 13. Ne5 {[%clk 0:02:32.2]} 13... Qe8 {[%clk
0:02:19.1]} 14. Nc6 {[%clk 0:02:30]} 14... Rc8 {[%clk 0:02:11.3]} 15. Nxa7
{[%clk 0:02:29.3]} 15... Ra8 {[%clk 0:02:10.4]} 16. Nab5 {[%clk 0:02:27.4]}
16... Na4 {[%clk 0:02:06.7]} 17. Nxc7 {[%clk 0:02:23.6]} 17... Qc8 {[%clk
0:02:01.7]} 18. Nxa8 {[%clk 0:02:22.7]} 18... Qxa8 {[%clk 0:02:02]} 19. Nxa4
{[%clk 0:02:18.3]} 19... Qxa4 {[%clk 0:02:01.4]} 20. Bg5 {[%clk 0:02:17.7]}
20... Rc8 {[%clk 0:01:59.6]} 21. Rfc1 {[%clk 0:02:16.8]} 21... Qa7 {[%clk
0:01:37.3]} 22. a4 {[%clk 0:02:09.3]} 22... Ng4 {[%clk 0:01:36.7]} 23. c5 {[%clk
0:01:45.1]} 23... Qc7 {[%clk 0:01:24.1]} 24. d6 {[%clk 0:01:39.2]} 24... exd6
{[%clk 0:01:11.6]} 25. cxd6 {[%clk 0:01:36.6]} 25... Qd7 {[%clk 0:01:04.8]} 26.
Rxc8+ {[%clk 0:01:35.6]} 26... Qxc8 {[%clk 0:01:04.5]} 27. h3 {[%clk 0:01:35.3]}
27... Nh6 {[%clk 0:01:00.9]} 28. Bxh6 {[%clk 0:01:30.5]} 28... Bxh6 {[%clk
0:00:59.4]} 29. Qb5 {[%clk 0:01:27.9]} 29... Bg7 {[%clk 0:00:54.4]} 30. d7
{[%clk 0:01:26]} 30... Qd8 {[%clk 0:00:47.8]} 31. Re1 {[%clk 0:01:25.7]} 31...
Bf8 {[%clk 0:00:30]} 32. Re8 {[%clk 0:01:21.1]} 32... Qc7 {[%clk 0:00:28]} 33.
Rxf8+ {[%clk 0:01:04.9]} 33... Kxf8 {[%clk 0:00:26.7]} 34. Qc5+ {[%clk
0:01:04.7]} 34... Qxc5 {[%clk 0:00:21.2]} 35. dxc5 {[%clk 0:01:05.6]} 1-0

[Event "Betsys MČR v online bleskovém šachu 2021"]
[Site "Chess.com"]
[Date "2021.04.17"]
[Round "1"]
[White "KatkaZ"]
[Black "MaTpAt113"]
[Result "1-0"]
[WhiteElo "1875"]
[BlackElo "850"]
[TimeControl "180+1"]
[EndTime "9:06:53 PDT"]
[Termination "Uživatel KatkaZ zvítězil po vzdání soupeře"]

1. Nf3 {[%clk 0:03:00.7]} 1... c6 {[%clk 0:03:00.9]} 2. g3 {[%clk 0:03:00.2]}
2... d5 {[%clk 0:02:58.3]} 3. Bg2 {[%clk 0:03:00]} 3... Bf5 {[%clk 0:02:57]} 4.
d3 {[%clk 0:03:00.3]} 4... e6 {[%clk 0:02:56.4]} 5. Nbd2 {[%clk 0:03:00.3]} 5...
Bd6 {[%clk 0:02:53.6]} 6. O-O {[%clk 0:03:00]} 6... Nf6 {[%clk 0:02:52.7]} 7. c3
{[%clk 0:02:59.2]} 7... O-O {[%clk 0:02:52.2]} 8. Re1 {[%clk 0:02:59.2]} 8... c5
{[%clk 0:02:49.2]} 9. e4 {[%clk 0:02:56.7]} 9... dxe4 {[%clk 0:02:46.2]} 10.
dxe4 {[%clk 0:02:56.1]} 10... Nxe4 {[%clk 0:01:59.6]} 11. Nxe4 {[%clk
0:02:53.1]} 11... Bc7 {[%clk 0:01:59.8]} 12. Qxd8 {[%clk 0:02:32.7]} 12... Rxd8
{[%clk 0:01:55.2]} 13. Nxc5 {[%clk 0:02:32.2]} 13... Nc6 {[%clk 0:01:42.2]} 14.
Nxb7 {[%clk 0:02:15.2]} 14... Rdb8 {[%clk 0:01:25.5]} 15. Nc5 {[%clk 0:02:12]}
15... Rb5 {[%clk 0:01:11.4]} 16. b4 {[%clk 0:02:00.5]} 16... Rd8 {[%clk
0:00:58.1]} 17. a4 {[%clk 0:01:53.7]} 17... Rbb8 {[%clk 0:00:41.9]} 18. Nh4
{[%clk 0:01:43]} 18... Ne5 {[%clk 0:00:33.8]} 19. Nxf5 {[%clk 0:01:41.4]} 19...
exf5 {[%clk 0:00:30.1]} 20. Na6 {[%clk 0:01:27.6]} 20... Nd3 {[%clk 0:00:14.7]}
21. Rf1 {[%clk 0:01:22.1]} 21... Nxb4 {[%clk 0:00:10]} 22. cxb4 {[%clk 0:01:15]}
22... Rbc8 {[%clk 0:00:08.1]} 23. Nxc7 {[%clk 0:01:13.5]} 23... Rxc7 {[%clk
0:00:06.3]} 24. Be3 {[%clk 0:01:10.7]} 24... Rcd7 {[%clk 0:00:06.4]} 25. Bc6
{[%clk 0:01:06.2]} 25... Rc7 {[%clk 0:00:05.6]} 26. b5 {[%clk 0:01:06.1]} 26...
Re7 {[%clk 0:00:04.4]} 27. Rad1 {[%clk 0:01:04.1]} 27... Rde8 {[%clk 0:00:02.3]}
28. Bxe8 {[%clk 0:01:03.2]} 28... Rxe8 {[%clk 0:00:01.6]} 29. Bxa7 {[%clk
0:01:02.4]} 1-0

[Event "Betsys MČR v online bleskovém šachu 2021"]
[Site "Chess.com"]
[Date "2021.04.17"]
[Round "1"]
[White "Bancroft"]
[Black "EXTREME_STRATEGY007"]
[Result "1-0"]
[WhiteElo "1940"]
[BlackElo "1075"]
[TimeControl "180+1"]
[EndTime "9:06:58 PDT"]
[Termination "Uživatel Bancroft zvítězil po vzdání soupeře"]

1. d4 {[%clk 0:02:59.2]} 1... Nf6 {[%clk 0:02:58.4]} 2. c4 {[%clk 0:02:57.2]}
2... g6 {[%clk 0:02:54.7]} 3. Nc3 {[%clk 0:02:56.2]} 3... Bg7 {[%clk 0:02:51.5]}
4. e4 {[%clk 0:02:55.5]} 4... d6 {[%clk 0:02:46.5]} 5. Nf3 {[%clk 0:02:54.6]}
5... O-O {[%clk 0:02:39.9]} 6. Be2 {[%clk 0:02:53.9]} 6... Nbd7 {[%clk
0:02:38.3]} 7. O-O {[%clk 0:02:51.8]} 7... c5 {[%clk 0:02:25.5]} 8. d5 {[%clk
0:02:46.7]} 8... Nb6 {[%clk 0:02:14.1]} 9. Qc2 {[%clk 0:02:31.2]} 9... Bg4
{[%clk 0:02:07.9]} 10. Ne1 {[%clk 0:02:19.9]} 10... Bxe2 {[%clk 0:02:05.9]} 11.
Qxe2 {[%clk 0:02:19.9]} 11... Qd7 {[%clk 0:02:04]} 12. h3 {[%clk 0:02:12.7]}
12... e6 {[%clk 0:01:53.8]} 13. Bf4 {[%clk 0:01:59.8]} 13... exd5 {[%clk
0:01:50.4]} 14. cxd5 {[%clk 0:01:55.9]} 14... Rfe8 {[%clk 0:01:45.5]} 15. Qc2
{[%clk 0:01:52.1]} 15... Nh5 {[%clk 0:01:42.1]} 16. Bh2 {[%clk 0:01:41.7]} 16...
Re7 {[%clk 0:01:28.2]} 17. f3 {[%clk 0:01:37.4]} 17... Rae8 {[%clk 0:01:25]} 18.
a4 {[%clk 0:01:35.4]} 18... a5 {[%clk 0:01:16.8]} 19. Nb5 {[%clk 0:01:33.4]}
19... Be5 {[%clk 0:01:08.4]} 20. Bxe5 {[%clk 0:01:08.7]} 20... Rxe5 {[%clk
0:01:07.3]} 21. Nd3 {[%clk 0:01:07]} 21... R5e7 {[%clk 0:01:03.6]} 22. Qf2
{[%clk 0:01:03.4]} 22... Kg7 {[%clk 0:00:58.1]} 23. Rae1 {[%clk 0:00:57.8]}
23... Kg8 {[%clk 0:00:56.7]} 24. g4 {[%clk 0:00:51.7]} 24... Nf6 {[%clk
0:00:54.2]} 25. Qg3 {[%clk 0:00:52.3]} 25... Kg7 {[%clk 0:00:52.5]} 26. Nxd6
{[%clk 0:00:47.5]} 26... c4 {[%clk 0:00:40.3]} 27. Nxe8+ {[%clk 0:00:46.7]}
27... Rxe8 {[%clk 0:00:39]} 28. Nf2 {[%clk 0:00:35.9]} 28... Nxa4 {[%clk
0:00:38.4]} 29. Nd1 {[%clk 0:00:30.2]} 29... Qc7 {[%clk 0:00:33.8]} 30. Qxc7
{[%clk 0:00:29.8]} 1-0